Cogmind - Beta 16 @@@ ROGUE MODE // 2025.12.19 @ 14:22:21 Player: PE-P51 Result: Destroyed by as-81465 with Assembled Blade Performance ------------- Evolutions (0) 0 Regions Visited (2) 400 Robots Destroyed (29) 145 Value Destroyed (449) 449 Prototype IDs (2) 40 Alien Tech Used (0) 0 Bonus (0) 0 TOTAL SCORE: 1034 Bonus ------- None Cogmind --------- Core Integrity 0/250 Matter 230/300 Energy 125/125 System Corruption 3% Temperature Cool (0) Movement Walking (190) Ox1 Location -10/Mines Parts ------- > --- POWER (1) -------- Light Ion Engine > --- PROPULSION (2) --- Aluminum Leg Aluminum Leg > --- UTILITY (2) ------ Large Storage Unit Transport Network Coupler > --- WEAPON (2) ------- Mining Claw > --- INVENTORY (15) --- Light Ion Engine Light Treads Light Treads Light Treads Wheel Wheel Small Storage Unit Huge Storage Unit Medium Matter Pod (0) Weight Redist. System Hacking Suite Light Assault Rifle Light Assault Rifle Light Assault Rifle Light Assault Rifle Peak State ------------ > --- POWER ------------ Light Ion Engine > --- PROPULSION ------- Aluminum Leg Aluminum Leg > --- UTILITY ---------- Large Storage Unit Transport Network Coupler > --- WEAPON ----------- Assault Rifle Assault Rifle > --- INVENTORY -------- Light Ion Engine Light Treads Light Treads Light Treads Aluminum Leg Aluminum Leg Wheel Wheel Small Storage Unit Weight Redist. System Hacking Suite Grenade Launcher [Rating: 8] Favorites ----------- Power Light Ion Engine Engine Light Ion Engine Propulsion Aluminum Leg Leg Aluminum Leg Utility Large Storage Unit Storage Large Storage Unit Processor Transport Network Coupler Weapon Assault Rifle Energy Gun EM Pulse Gun Ballistic Gun Assault Rifle Launcher Grenade Launcher Slashing Weapon Mining Claw Build | -11 -10 -10 ------- Run | Yrd Mat Min Slots Evolved . | . . . Power . | . . . Propulsion . | . . . Utility . | . . . Weapon . | . . . Parts Attached 10 | . 10 . Power 1 | . 1 . Engine 1 | . 1 . Core . | . . . Reactor . | . . . Propulsion 2 | . 2 . Treads . | . . . Leg 2 | . 2 . Wheel . | . . . Hover . | . . . Flight . | . . . Utility 2 | . 2 . Device . | . . . Storage 1 | . 1 . Processor 1 | . 1 . Hackware . | . . . Protection . | . . . Artifact . | . . . Weapon 5 | . 5 . Energy Gun . | . . . Energy Cannon . | . . . Ballistic Gun 3 | . 3 . Ballistic Cannon . | . . . Launcher 1 | . 1 . Special Weapon . | . . . Impact Weapon . | . . . Slashing Weapon 1 | . 1 . Piercing Weapon . | . . . Special Melee Weapon . | . . . Unidentified Prototypes . | . . . Parts Lost 7 | . 6 1 Power 1 | . 1 . Propulsion 2 | . 2 . Utility . | . . . Weapon 4 | . 3 1 Highest Loss Streak 5 | . 5 1 To Critical Strikes . | . . . Average Backups 12 | . 12 15 Power 1 | . 1 1 Propulsion 5 | . 5 5 Utility 3 | . 3 5 Weapon 2 | . 1 4 Tool/Special . | . . . Unused Backups 19 | . 5 14 Power 2 | . 1 1 Propulsion 7 | . 2 5 Utility 5 | . . 5 Weapon 5 | . 2 3 Tool/Special . | . . . Average Slot Usage (%) 92 | . 92 96 Engine 11 | . 11 14 Leg 27 | . 27 28 Storage 14 | . 14 14 Processor 11 | . 11 14 Energy Gun 2 | . 2 . Ballistic Gun 11 | . 11 . Launcher 7 | . 7 10 Slashing Weapon 5 | . 5 14 Peak Build Rating 8 | . 8 8 Average Rating 7 | . 7 7 On Entrance 6 | 6 6 8 Avg Prop Armor Cover (%) . | . . . Naked Turns . | . . . Heaviest Build 32 | 12 32 28 Greatest Support 20 | 20 20 20 Greatest Overweight (x) 1 | . 1 1 Average Overweight (x) . | . . 1 Largest Inventory Capacity 15 | . 15 15 Average Capacity 14 | . 14 15 Most Carried 15 | . 15 15 Average Carried 12 | . 12 15 Final Capacity 15 | 8 15 15 Final Carried 15 | 6 15 15 Class Distribution -------------------- 100% | Mutant Dominant Class ---------------- Mutant | -10/Materials Mutant | -10/Mines Resources | -11 -10 -10 ----------- Run | Yrd Mat Min Matter Collected 461 | 177 284 . Remotely . | . . . Salvage Created 707 | . 707 . Parts 67 | . 67 . Haulers Intercepted 1 | . 1 . Recyclers Shooed . | . . . Parts Field Recycled . | . . . Retrieved Matter . | . . . Parts Self-Destructed . | . . . Prevented . | . . . Parts Restored . | . . . Kills | -11 -10 -10 ------- Run | Yrd Mat Min Combat Hostiles Destroyed 16 | . 16 . Guns 11 | . 11 . AOE 5 | . 5 . Classes Destroyed 9 | . 9 . Worker 4 | . 4 . Builder 2 | . 2 . Tunneler 2 | . 2 . Hauler 1 | . 1 . Recycler 2 | . 2 . Operator 1 | . 1 . Watcher 1 | . 1 . Swarmer 8 | . 8 . Grunt 8 | . 8 . Best Kill Streak 7 | . 7 . Combat Bots Only 4 | . 4 . Max Kills in Single Turn 4 | . 4 . Gunslinging 1 | . 1 . Exploded 2 | . 2 . Melee . | . . . Uniques/NPCs Destroyed . | . . . Combat | -11 -10 -10 -------- Run | Yrd Mat Min Hostile Shots Fired 119 | . 105 14 Missed 28 | . 23 5 Hits 91 | . 82 9 Melee 1 | . . 1 Projectile 90 | . 82 8 Critical Strikes 1 | . 1 . Damage Taken 1073 | . 940 133 Core 265 | . 232 33 Absorbed by Shields . | . . . Regen/Repaired (Parts) 42 | . 42 . Core Remaining (%) 100 | 100 . . Volleys Fired 61 | . 61 . Largest 2 | . 2 . Hottest 60 | . 60 . Shots Fired 98 | . 98 . Gun 93 | . 93 . Cannon . | . . . Launcher 5 | . 5 . Special . | . . . Kinetic 89 | . 89 . Thermal . | . . . Explosive 5 | . 5 . Electromagnetic 4 | . 4 . Robot Hit Streak 11 | . 11 . Robot Miss Streak 3 | . 3 . Penetration Max . | . . . Secondary Targets 1 | . 1 . Max Gunslinging Chain 1 | . 1 . Shots Hit Robots 67 | . 67 . Core Hits 41 | . 41 . Critical Kills . | . . . Critical Parts Destroyed . | . . . Critical Strikes . | . . . Melee Attacks 4 | . 3 1 Impact . | . . . Slashing 4 | . 3 1 Piercing . | . . . Sneak Attacks 2 | . 2 . Combat Hostiles . | . . . Follow-up Attacks . | . . . Damage Inflicted 1383 | . 1383 . Guns 663 | . 663 . Cannons . | . . . Explosions 616 | . 616 . Melee 89 | . 89 . Ramming 15 | . 15 . Kinetic 619 | . 619 . Thermal 250 | . 250 . Explosive 366 | . 366 . Electromagnetic 44 | . 44 . Impact . | . . . Slashing 89 | . 89 . Piercing . | . . . Highest Corruption 3 | . 3 3 Average Corruption 2 | . 2 3 Corruption Purged . | . . . Corruption Blocked . | . . . Effects 2 | . 1 1 Message Errors 2 | . 1 1 Overload Shots . | . . . Overflow Damage 147 | . 147 . Projectiles . | . . . Explosions 147 | . 147 . Melee . | . . . Knockbacks . | . . . Impact . | . . . Kinetic . | . . . Secondary . | . . . Self-Inflicted Damage 117 | . 117 . Shots 3 | . 3 . Rammed . | . . . Targets Rammed 2 | . 2 . Kicked 2 | . 2 . Crushed . | . . . Highest Temperature 36 | . 36 . Average Temperature 11 | . 11 . Received Heat Transfer 225 | . 225 . Siege Activations . | . . . Martial Activations . | . . . Shielding Activations . | . . . Robots Disrupted . | . . . Combat Hostiles . | . . . Robots Corrupted . | . . . Combat Hostiles . | . . . Parts Fried . | . . . Impact Corruptions . | . . . Robots Melted . | . . . Combat Hostiles . | . . . Parts Melted . | . . . Heat Transferred 150 | . 150 . Parts Sabotaged . | . . . Parts Stolen . | . . . Parts Stripped . | . . . Power Chain Reactions 1 | . 1 . Alert | -11 -10 -10 ------- Run | Yrd Mat Min Maximum Alert Level 1 | . 1 . Low Security (%) 94 | . 93 100 Level 1 5 | . 6 . Level 2 . | . . . Level 3 . | . . . Level 4 . | . . . Level 5 . | . . . High Security . | . . . Max Security . | . . . Peak Influence 221 | . 221 46 Initial 46 | . . 46 Average 114 | . 116 41 Influence Increases 549 | . 549 . Destroy 0b10 Robot/C 320 | . 320 . Destroy 0b10 Robot/NC 65 | . 65 . Destroy Leader 74 | . 74 . Successful Hack 6 | . 6 . Disable Machine 15 | . 15 . Destroy Structure 54 | . 54 . Lose Combat Pursuer 15 | . 15 . Influence Decreases 523 | . 429 94 Entered New Map 74 | . . 74 Time Decay 379 | . 369 10 Lost Part 70 | . 60 10 Squads Dispatched 3 | . 3 . Investigation 1 | . 1 . Extermination . | . . . Reinforcement 2 | . 2 . Assault . | . . . Garrison . | . . . Intercept . | . . . Searches Triggered . | . . . Construction Impeded . | . . . Haulers Reinforced . | . . . Active Scanning Responses . | . . . Cargo Convoy Interrupts . | . . . Stealth | -11 -10 -10 --------- Run | Yrd Mat Min Distress Signals 4 | . 4 . Communications Jammed . | . . . Distress Signals . | . . . Times Spotted 42 | . 29 13 Peak Tracking Total 20 | . 6 20 Tactical Retreats 2 | . 1 1 Traps | -11 -10 -10 ------- Run | Yrd Mat Min Traps Triggered 3 | . 3 . Indirectly . | . . . Trap Hack Attempts . | . . . Triggered . | . . . Disarmed . | . . . Reprogrammed . | . . . Reused . | . . . Traps Extracted . | . . . Installed . | . . . Triggered . | . . . Machines | -11 -10 -10 ---------- Run | Yrd Mat Min Machines Disabled 1 | . 1 . Max in Single Turn 1 | . 1 . Machines Repaired . | . . . Machines Dismantled . | . . . Machines Sabotaged . | . . . Overloaded Fab Kills . | . . . Hacking | -11 -10 -10 --------- Run | Yrd Mat Min Machines Accessed 4 | . 4 . Terminals 3 | . 3 . Fabricators . | . . . Repair Stations 1 | . 1 . Recycling Units . | . . . Scanalyzers . | . . . Garrison Access . | . . . Total Hacks 12 | . 12 . Successful 5 | . 5 . Failed 6 | . 6 . Catastrophic 2 | . 2 . Database Lockouts 1 | . 1 . Manual 3 | . 3 . Terminals 10 | . 10 . Fabricators . | . . . Repair Stations 2 | . 2 . Recycling Units . | . . . Scanalyzers . | . . . Garrison Access . | . . . Terminal Hacks 3 | . 3 . Robot Analysis 2 | . 2 . Prototype ID Bank 1 | . 1 . Fabricator Hacks . | . . . Repair Station Hacks 2 | . 2 . Scan Component 1 | . 1 . Repair 1 | . 1 . Recycling Unit Hacks . | . . . Scanalyzer . | . . . Garrison Access Hacks . | . . . Unauthorized Hacks . | . . . Terminals . | . . . Fabricators . | . . . Repair Stations . | . . . Recycling Units . | . . . Scanalyzers . | . . . Garrison Access . | . . . Data Cores Recovered 1 | . 1 . Used 1 | . 1 . Hacking Detections 3 | . 3 . Full Trace Events 1 | . 1 . Feedback Events . | . . . Feedback Blocked . | . . . Robot Schematics Acquired . | . . . Robots Built . | . . . Authchips . | . . . Time . | . . . Total Robot Build Rating . | . . . Part Schematics Acquired . | . . . Parts Built . | . . . Authchips . | . . . Time . | . . . Total Part Build Rating . | . . . Part Studies Acquired . | . . . Parts Repaired 1 | . 1 . Time 26 | . 26 . Parts Recycled . | . . . Recycled Matter . | . . . Retrieved Matter . | . . . Retrieved Components . | . . . Parts Scanalyzed . | . . . Part Schematics Acquired . | . . . Parts Damaged . | . . . Bothacking | -11 -10 -10 ------------ Run | Yrd Mat Min Used RIF Installer . | . . . Robots Hacked . | . . . Non-combat . | . . . Combat . | . . . Robot Hacks Applied . | . . . Relay Couplers Released . | . . . Fabnet Peak Effective % . | . . . Robots Rewired . | . . . Allies Hacked . | . . . Hacks Repelled . | . . . Allies | -11 -10 -10 -------- Run | Yrd Mat Min Total Allies . | . . . Largest Group . | . . . Highest-Rated Group . | . . . Highest-Rated Ally . | . . . Total Orders . | . . . Ally Attacks . | . . . Total Damage . | . . . Kills . | . . . Allies Corrupted . | . . . Allies Melted . | . . . Intel | -11 -10 -10 ------- Run | Yrd Mat Min Active Infowar (turns) 879 | . 848 31 T.N.C. 879 | . 848 31 Robot Analysis Total 2 | . 2 . Derelict Logs Recovered . | . . . Drone Launches . | . . . Drone Recoveries . | . . . Exploration | -11 -10 -10 ------------- Run | Yrd Mat Min Turns Passed 1090 | . 1059 31 Spaces Moved 454 | 1 438 15 Core . | . . . Treads . | . . . Legs 454 | 1 438 15 Wheels . | . . . Hover . | . . . Flight . | . . . Fastest Speed 120 | 120 120 190 Average Speed 189 | 120 189 190 Slowest Speed 190 | 120 190 190 Overloaded Moves . | . . . Propulsion Burnouts . | . . . Robots Hopped . | . . . Potential Cave-ins . | . . . Cave-ins Triggered . | . . . Exploration Rate (%) 29 | 2 75 10 Regions Visited 2 Branch Regions 1 Pre-discovered Areas . | . . . Known Exits Taken . | . . . Unknown Exits Taken 2 | 1 1 . Scrap Searched . | . . . Spaces Dug 11 | . 11 . Terrain Destroyed 58 | . 58 . Melee . | . . . Projectile . | . . . AOE 58 | . 58 . Terrain Rammed . | . . . Walls Destroyed . | . . . Machines Disabled . | . . . Actions | -11 -10 -10 --------- Run | Yrd Mat Min Total 583 | . 567 16 Wait 38 | . 38 . Move 452 | . 437 15 Hop . | . . . Pick Up 13 | . 13 . Fast Attach 5 | . 5 . Attach 5 | . 5 . Detach 1 | . 1 . Swap 1 | . 1 . Drop 1 | . 1 . Fire 61 | . 61 . Melee 4 | . 3 1 Ram . | . . . Kick 2 | . 2 . Crush . | . . . Escape Stasis . | . . . Rewire . | . . . Trap . | . . . Miscellaneous . | . . . Route ------- -11/Scrapyard -10/Materials (discovered 5 exits: [*Mat x2] / [*Min x2] / [*Sub]) -10/Mines History --------- Turn | Location | Event 1 | -11/Scrapyard | Discovered new exit (range 0) 1 | -11/Scrapyard | Entered Materials 94 | -10/Materials | Central database locked down 96 | -10/Materials | Discovered new exit (range 16) 301 | -10/Materials | Discovered new exit (range 8) 309 | -10/Materials | Build established: Mutant 329 | -10/Materials | Discovered new exit (range 11) 444 | -10/Materials | Core integrity fell below 50% 481 | -10/Materials | Core integrity fell below 20% 508 | -10/Materials | Lost 5 parts (1p2n2w) 555 | -10/Materials | Discovered new exit (range 12) 701 | -10/Materials | Derelicts attacked the area 740 | -10/Materials | Discovered new exit (range 15) 835 | -10/Materials | Repaired Grenade Launcher 1060 | -10/Materials | Entered Mines 1061 | -10/Mines | Assembled infested the area 1066 | -10/Mines | Assisted by a Guerilla fighting off Assembled 1091 | -10/Mines | Destroyed by as-81465 with Assembled Blade Last Messages --------------- squad. 01066_ A derelict emerges from the shadows: "You need to get out of here! I've been tracking a group of Assembled to figure out where they're coming from, and they're closing on this area, come on!" 01066_ CR-0TF(h): "I'll hold them off! Go on ahead or try to find another way!" 01066_ as-40063 suffers critical hit (Destroy). 01066_ as-40063 knocked back. 01068_ as-14036 suffers critical hit (Destroy). 01068_ as-14036 knocked back. 01070_ HV Slug penetrates as-33622. 01070_ as-33622 destroyed. 01070_ HV Slug penetrates Wall. 01071_ K-01 Serf collects debris. 01076_ K-01 Serf cleans the Plasma Injector. 01083_ =H=JFRA9Z#ADGDX/DGO3L%M| 01083_ K-01 Serf cleans the Plasma Injector. 01086_ as-81465 sneak attacks. 01086_ K-01 Serf destroyed. 01088_ Grenade Launcher destroyed. Map ----- +----------------------------------------------------+ | ?????????????????????????????????????????????????? | | ?????????????????????????????????????????????????? | | ?????????????????????????????????????????????????? | | ?????????????????????????????????????????????????? | | ?????????????????????????????????????????????????? | | ?????????????????????????????????????????????????? | | ?????????????????? ?????????????????????????????? | | ?????????????????? ?????????????????????????????? | | ?????????????????? ?????????????????????????????? | | ?????????????????# ?????????????????????????????? | | ?????????????????# ?????????????????????????????? | | ?????????????????# ?????????????????????????????? | | ?????????????????# ?????????????????????????????? | | ?????????????????# $#????????????????????????????? | | ?????????????????# #????????????????????????????? | | ?????????????????# #????###?????##??????????????? | | ?????????????????# #?###% #### ##?????????????? | | ?????????????????# ### ##????????????? | | ?????????????????# ## % " ?????????????? | | ?????????????????# $ #???????????????????? | | ?????????????????# ##???????????????????? | | ?????????????????## ## ##????????????????????? | | ????????????????### ########?????????????????????? | | ????????????????# aaa #??????????????????????? | | ????????????????# """a"""a#??????????????????????? | | ????????????????# """="""@#??????????????????????? | | ????????????????# """%"""a#??????????????????????? | | ????????????????# a #??????????????????????? | | ????????????????# """ """ #??????????????????????? | | ????????????????# """ """ #??????????????????????? | | ????????????????# """ """ #??????????????????????? | | ?????????????????? k #??????????????????????? | | ??????????????????### #####??????????????????????? | | ????????????????????? ???????????????????????????? | | ????????????????????? ???????????????????????????? | | ????????????????????? ???????????????????????????? | | ????????????????????? ???????????????????????????? | | ????????????????????? ???????????????????????????? | | ?????????????????????#???????????????????????????? | | ?????????????????????????????????????????????????? | | ?????????????????????????????????????????????????? | | ?????????????????????????????????????????????????? | | ?????????????????????????????????????????????????? | | ?????????????????????????????????????????????????? | | ?????????????????????????????????????????????????? | | ?????????????????????????????????????????????????? | | ?????????????????????????????????????????????????? | | ?????????????????????????????????????????????????? | | ?????????????????????????????????????????????????? | | ?????????????????????????????????????????????????? | +----------------------------------------------------+ Best States ------------- Heat Dissipation 25 Energy Generation 10 Energy Capacity 125 Matter Stores 300 Matter Capacity 300 Sight Range 16 Terrain Scan Density 10 Evasion (%) 40 Item Schematics ----------------- None Robot Schematics ------------------ None Fabricated ------------ Nothing Repaired ---------- Grenade Launcher | 30% | -10/Materials Studied --------- None Alien Tech Used ----------------- None Achievements -------------- None Challenges ------------ None Game ------ Seed ProcessingSchematicSuit Manual? 0 Play Time 00:05:30 Cumulative 204.2 hours Start 2025.12.19 @ 14:17:21 End 2025.12.19 @ 14:22:21 Sessions 1 Manual Loads 0 Difficulty Rogue Special Mode None Game No. 281 Rogue 280 Adventurer 1 Explorer 0 Win Type - Total 2 Types 1/0/0/1/0/0/0/0/0/0 Lore% 66 Gallery% 62 Achievement% 55 Wizard Run 0 Options --------- Layout 0 ASCII 0 Keyboard 0 Movement Numpad Keybinds 0 Fullscreen 1 Font 24/Smallcaps Map View 76x50 Zoom Use 0% Tactical HUD 1 Map Filters NONE Filters NONE Steam 1 RUN: da458806-5a6e-44a9-8f08-02a623540d67